fUSD/lending_fUSD_20240712
["ID","MTS","AMOUNT","RATE_DAILY","PERIOD"]
[331797134,1720765913980,-500.0,0.00014082,2]
[331797135,1720765913990,-500.0,0.00014082,2]
[331797136,1720765914000,-500.0,0.00014082,2]
[331797137,1720765914010,-1103.87,0.00014082,2]
[331797138,1720765914021,-838.82,0.00014082,2]
[331797139,1720765914037,-500.0,0.00014082,2]
[331797140,1720765914058,-906.68,0.00014082,2]
[331797141,1720765914077,-774.99,0.00014082,2]
[331797142,1720765914099,-500.0,0.00014082,2]
[331797143,1720765914114,-1574.49,0.00014082,2]
[331797144,1720765914132,-1003.46,0.00014082,2]
[331797145,1720765914152,-776.49,0.00014082,2]
[331797146,1720765914171,-715.19,0.00014082,2]
[331797147,1720765914191,-500.0,0.00014082,2]
[331797148,1720765914214,-2671.99,0.00014082,2]
[331797149,1720765914232,-811.17,0.00014082,2]
[331797150,1720765914248,-1169.16,0.00014082,2]
[331797151,1720765914267,-804.64,0.00014082,2]
[331797152,1720765914279,-516.06,0.00014082,2]
[331797153,1720765914295,-500.0,0.00014082,2]
[331797154,1720765914308,-1567.42,0.00014082,2]
[331797155,1720765914326,-1123.97,0.00014082,2]
[331797156,1720765914341,-1159.17,0.00014082,2]
[331797157,1720765914357,-7796.51,0.00014082,2]
[331797158,1720765914372,-682.47,0.00014082,2]
[331797159,1720765914386,-3427.86,0.00014082,2]
[331797160,1720765914401,-884.1,0.00014082,2]
[331797161,1720765914415,-761.42,0.00014082,2]
[331797162,1720765914429,-558.11812398,0.00014082,2]
[331797163,1720765914444,-500.0,0.00014082,2]
[331797164,1720765914462,-500.0,0.00014082,2]
[331797165,1720765914476,-500.0,0.00014082,2]
[331797166,1720765914490,-2349.61,0.00014082,2]
[331797167,1720765914506,-2824.19,0.00014082,2]
[331797168,1720765914521,-544.06,0.00014082,2]
[331797169,1720765914536,-1413.14,0.00014082,2]
[331797170,1720765914551,-594.92826418,0.00014082,2]
[331797171,1720765914566,-168.38249519,0.00014082,2]
[331797172,1720765914581,-500.0,0.00014082,2]
[331797173,1720765914596,-746.16,0.00014082,2]
[331797174,1720765914610,-1040.64,0.00014082,2]
[331797175,1720765914625,-568.05,0.00014082,2]
[331797176,1720765914640,-1225.06,0.00014082,2]
[331797177,1720765914655,-500.0,0.00014082,2]
[331797178,1720765914671,-945.48,0.00014082,2]
[331797179,1720765914686,-502.01,0.00014082,2]
[331797180,1720765914702,-1864.03,0.00014082,2]
[331797181,1720765914716,-500.0,0.00014082,2]
[331797182,1720765914731,-782.62,0.00014082,2]
[331797183,1720765914745,-3139.48,0.00014082,2]
[331797184,1720765914760,-760.77,0.00014082,2]
[331797185,1720765914775,-967.92,0.00014082,2]
[331797186,1720765914790,-817.59,0.00014082,2]
[331797187,1720765914805,-672.02,0.00014082,2]
[331797188,1720765914821,-500.0,0.00014082,2]
[331797189,1720765914836,-500.0,0.00014082,2]
[331797190,1720765914851,-1369.87,0.00014082,2]
[331797191,1720765914867,-927.94,0.00014082,2]
[331797192,1720765914882,-503.52,0.00014082,2]
[331797193,1720765914897,-412.07100964,0.00014082,2]
[331797194,1720765914912,-500.0,0.00014082,2]
[331797195,1720765914927,-500.0,0.00014082,2]
[331797196,1720765914943,-510.11,0.00014082,2]
[331797197,1720765914959,-883.29,0.00014082,2]
[331797198,1720765914975,-500.0,0.00014082,2]
[331797199,1720765914990,-500.0,0.00014082,2]
[331797200,1720765915005,-703.12,0.00014082,2]
[331797201,1720765915021,-913.43,0.00014082,2]
[331797202,1720765915036,-1249.82,0.00014082,2]
[331797203,1720765915051,-698.85,0.00014082,2]
[331797204,1720765915066,-513.61,0.00014082,2]
[331797205,1720765915081,-500.0,0.00014082,2]
[331797206,1720765915095,-500.0,0.00014082,2]
[331797207,1720765915109,-500.0,0.00014082,2]
[331797208,1720765915124,-3390.01,0.00014082,2]
[331797209,1720765915139,-522.91,0.00014082,2]
[331797210,1720765915154,-977.7,0.00014082,2]
[331797211,1720765915169,-266.51517908,0.00014082,2]
[331797212,1720765915184,-641.99,0.00014082,2]
[331797213,1720765915198,-853.13,0.00014082,2]
[331797214,1720765915212,-760.44,0.00014082,2]
[331797215,1720765915226,-534.54,0.00014082,2]
[331797216,1720765915239,-500.0,0.00014082,2]
[331797217,1720765915253,-789.27,0.00014082,2]
[331797218,1720765915267,-1308.59,0.00014082,2]
[331797219,1720765915282,-61642.24128367,0.00014088,2]
[331797220,1720765915297,-1411.0,0.000141,2]
[331797221,1720765915312,-167.05516023,0.00014105,2]
[331797222,1720765915326,-158.92801915,0.0001411,2]
[331797223,1720765915340,-158.92801915,0.0001411,2]
[331797224,1720765915354,-158.92801915,0.0001411,2]
[331797225,1720765915372,-158.92801915,0.0001411,2]
[331797226,1720765915386,-500.0,0.00014126,2]
[331797227,1720765915401,-500.0,0.00014136,2]
[331797228,1720765915415,-500.0,0.00014136,2]
[331797229,1720765915429,-500.0,0.00014136,2]
[331797230,1720765915443,-500.0,0.00014136,2]
[331797231,1720765915458,-500.0,0.00014136,2]
[331797232,1720765915472,-500.0,0.00014136,2]
[331797233,1720765915486,-500.0,0.00014136,2]
[331797234,1720765915500,-600.13,0.00014136,2]
[331797235,1720765915520,-500.0,0.00014136,2]
[331797236,1720765915534,-533.46,0.00014136,2]
[331797237,1720765915548,-500.0,0.00014136,2]
[331797238,1720765915564,-500.0,0.00014136,2]
[331797239,1720765915578,-547.29,0.00014136,2]
[331797240,1720765915592,-527.94,0.00014136,2]
[331797241,1720765915607,-500.0,0.00014136,2]
[331797242,1720765915638,-500.0,0.00014136,2]
[331797243,1720765915664,-829.62,0.00014136,2]
[331797244,1720765915685,-678.42,0.00014136,2]
[331797245,1720765915704,-500.0,0.00014136,2]
[331797246,1720765915723,-500.0,0.00014136,2]
[331797247,1720765915739,-500.0,0.00014136,2]
[331797248,1720765915757,-1078.13,0.00014136,2]
[331797249,1720765915773,-540.64244596,0.00014136,2]
[331797250,1720765915788,-172.00977404,0.00014136,2]
[331797251,1720765915805,-599.97,0.00014136,2]
[331797252,1720765915821,-572.91,0.00014136,2]
[331797253,1720765915837,-500.0,0.00014136,2]
[331797254,1720765915853,-500.0,0.00014136,2]
[331797255,1720765915868,-500.0,0.00014136,2]
[331797256,1720765915884,-500.0,0.00014136,2]
[331797257,1720765915899,-541.87,0.00014136,2]
[331797258,1720765915913,-561.01,0.00014136,2]
[331797259,1720765915928,-500.0,0.00014136,2]
[331797260,1720765915943,-526.37,0.00014136,2]
[331797261,1720765915958,-500.0,0.00014136,2]
[331797262,1720765915973,-500.0,0.00014136,2]
[331797263,1720765915988,-658.35,0.00014136,2]
[331797264,1720765916004,-500.0,0.00014136,2]
[331797265,1720765916308,-597.81,0.00014136,2]
[331797266,1720765916334,-665.34,0.00014136,2]
[331797267,1720765916344,-879.54,0.00014136,2]
[331797268,1720765916354,-500.0,0.00014136,2]
[331797269,1720765916365,-1042.83,0.00014136,2]
[331797270,1720765916376,-500.0,0.00014136,2]
[331797271,1720765916387,-167.42225864,0.00014136,2]
[331797272,1720765916398,-500.0,0.00014136,2]
[331797273,1720765916409,-500.0,0.00014136,2]
[331797274,1720765916420,-801.96,0.00014136,2]
[331797275,1720765916431,-676.83,0.00014136,2]
[331797276,1720765916442,-576.46,0.00014136,2]
[331797277,1720765916452,-679.71,0.00014136,2]
[331797278,1720765916462,-699.82,0.00014136,2]
[331797279,1720765916471,-500.0,0.00014136,2]
[331797280,1720765916481,-500.0,0.00014136,2]
[331797281,1720765916492,-902.64,0.00014136,2]
[331797282,1720765916501,-500.0,0.00014136,2]
[331797283,1720765916515,-500.0,0.00014136,2]
[331797284,1720765916525,-969.66,0.00014136,2]
[331797285,1720765916535,-1386.9,0.00014136,2]
[331797286,1720765916546,-556.22,0.00014136,2]
[331797287,1720765916558,-500.0,0.00014136,2]
[331797288,1720765916568,-500.0,0.00014136,2]
[331797289,1720765916578,-500.0,0.00014136,2]
[331797290,1720765916589,-500.0,0.00014136,2]
[331797291,1720765916598,-832.86,0.00014136,2]
[331797292,1720765916608,-1142.56,0.00014136,2]
[331797293,1720765916618,-584.03,0.00014136,2]
[331797294,1720765916628,-678.02,0.00014136,2]
[331797295,1720765916637,-965.58,0.00014136,2]
[331797296,1720765916646,-980.86,0.00014136,2]
[331797297,1720765916655,-500.0,0.00014136,2]
[331797298,1720765916665,-500.0,0.00014136,2]
[331797299,1720765916674,-370.49142828,0.00014136,2]
[331797300,1720765916683,-625.22,0.00014136,2]
[331797301,1720765916693,-500.0,0.00014136,2]
[331797302,1720765916704,-1043.71,0.00014136,2]
[331797303,1720765916714,-500.0,0.00014136,2]
[331797304,1720765916724,-1095.96,0.00014136,2]
[331797305,1720765916736,-663.07,0.00014136,2]
[331797306,1720765916746,-500.0,0.00014136,2]
[331797307,1720765916756,-1311.76,0.00014136,2]
[331797308,1720765916766,-500.0,0.00014136,2]
[331797309,1720765916777,-1064.74,0.00014136,2]
[331797310,1720765916787,-500.0,0.00014136,2]
[331797311,1720765916797,-500.0,0.00014136,2]
[331797312,1720765916807,-500.0,0.00014136,2]
[331797313,1720765916817,-1453.03,0.00014136,2]
[331797314,1720765916827,-253.31921527,0.00014136,2]
[331797315,1720765916837,-506.91,0.00014136,2]
[331797316,1720765916847,-625.46,0.00014136,2]
[331797317,1720765916857,-651.67,0.00014136,2]
[331797318,1720765916867,-1301.15,0.00014136,2]
[331797319,1720765916877,-500.0,0.00014136,2]
[331797320,1720765916887,-500.0,0.00014136,2]
[331797321,1720765916896,-500.0,0.00014136,2]
[331797322,1720765916906,-500.0,0.00014136,2]
[331797323,1720765916916,-618.62,0.00014136,2]
[331797324,1720765916927,-500.0,0.00014136,2]
[331797325,1720765916937,-1182.83,0.00014136,2]
[331797326,1720765916949,-871.11,0.00014136,2]
[331797327,1720765916959,-500.0,0.00014136,2]
[331797328,1720765916969,-886.56,0.00014136,2]
[331797329,1720765916978,-500.0,0.00014136,2]
[331797330,1720765916988,-1085.4,0.00014136,2]
[331797331,1720765916998,-896.6,0.00014136,2]
[331797332,1720765917008,-830.96,0.00014136,2]
[331797333,1720765917018,-500.0,0.00014136,2]
[331797334,1720765917028,-674.06,0.00014136,2]
[331797335,1720765917038,-1895.01,0.00014136,2]
[331797336,1720765917048,-1172.9,0.00014136,2]
[331797337,1720765917059,-1660.92,0.00014136,2]
[331797338,1720765917070,-644.5,0.00014136,2]
[331797339,1720765917080,-1467.31,0.00014136,2]
[331797340,1720765917090,-500.0,0.00014136,2]
[331797341,1720765917099,-981.49,0.00014136,2]
[331797342,1720765917109,-500.0,0.00014136,2]
[331797343,1720765917119,-1112.45,0.00014136,2]
[331797344,1720765917129,-721.53,0.00014136,2]
[331797345,1720765917138,-500.0,0.00014136,2]
[331797346,1720765917148,-500.0,0.00014136,2]
[331797347,1720765917158,-773.09,0.00014136,2]
[331797348,1720765917167,-750.22,0.00014136,2]
[331797349,1720765917177,-500.0,0.00014136,2]
[331797350,1720765917187,-500.0,0.00014136,2]
[331797351,1720765917198,-617.12,0.00014136,2]
[331797352,1720765917209,-1485.55,0.00014136,2]
[331797353,1720765917219,-645.73,0.00014136,2]
[331797354,1720765917230,-609.33,0.00014136,2]
[331797355,1720765917240,-600.71535866,0.00014136,2]
[331797356,1720765917249,-1043.11,0.00014136,2]
[331797357,1720765917259,-577.94,0.00014136,2]
[331797358,1720765917268,-1001.09,0.00014136,2]
[331797359,1720765917278,-572.94,0.00014136,2]
[331797360,1720765917287,-826.26,0.00014136,2]
[331797361,1720765917297,-500.0,0.00014136,2]
[331797362,1720765917307,-863.68,0.00014136,2]
[331797363,1720765917316,-500.0,0.00014136,2]
[331797364,1720765917326,-978.71,0.00014136,2]
[331797365,1720765917336,-927.14,0.00014136,2]
[331797366,1720765917345,-1033.49,0.00014136,2]
[331797367,1720765917354,-500.0,0.00014136,2]
[331797368,1720765917363,-500.0,0.00014136,2]
[331797369,1720765917372,-584.99,0.00014136,2]
[331797370,1720765917381,-1551.06,0.00014136,2]
[331797371,1720765917391,-924.22,0.00014136,2]
[331797372,1720765917400,-500.0,0.00014136,2]
[331797373,1720765917410,-936.64,0.00014136,2]
[331797374,1720765917419,-500.0,0.00014136,2]
[331797375,1720765917429,-500.0,0.00014136,2]
[331797376,1720765917439,-500.0,0.00014136,2]
[331797377,1720765917450,-583.16,0.00014136,2]
[331797378,1720765917459,-1266.54,0.00014136,2]
[331797379,1720765917469,-628.23,0.00014136,2]
[331797380,1720765917479,-1145.72,0.00014136,2]
[331797381,1720765917488,-500.0,0.00014136,2]
[331797382,1720765917498,-500.0,0.00014136,2]
[331797383,1720765917510,-1072.75,0.00014136,2]
[331797384,1720765917520,-628.89,0.00014136,2]
[331797385,1720765917529,-882.64,0.00014136,2]
[331797386,1720765917539,-500.0,0.00014136,2]
[331797387,1720765917549,-908.15,0.00014136,2]
[331797388,1720765917559,-617.45,0.00014136,2]
[331797389,1720765917568,-500.0,0.00014136,2]
[331797390,1720765917578,-597.8,0.00014136,2]
[331797391,1720765917587,-500.0,0.00014136,2]
[331797392,1720765917597,-1413.12,0.00014136,2]
[331797393,1720765917606,-684.65,0.00014136,2]
[331797394,1720765917616,-1269.4,0.00014136,2]
[331797395,1720765917625,-1009.57,0.00014136,2]
[331797396,1720765917644,-820.34,0.00014136,2]
[331797397,1720765917655,-570.33,0.00014136,2]
[331797398,1720765917666,-751.75,0.00014136,2]
[331797399,1720765917677,-500.0,0.00014136,2]
[331797400,1720765917687,-500.0,0.00014136,2]
[331797401,1720765917699,-1287.67,0.00014136,2]
[331797402,1720765917709,-922.77,0.00014136,2]
[331797403,1720765917719,-500.0,0.00014136,2]
[331797404,1720765917728,-1345.39,0.00014136,2]
[331797405,1720765917738,-649.45,0.00014136,2]
[331797406,1720765917748,-536.18,0.00014136,2]
[331797407,1720765917757,-500.0,0.00014136,2]
[331797408,1720765917767,-895.96,0.00014136,2]
[331797409,1720765917777,-1632.41,0.00014136,2]
[331797410,1720765917788,-566.55,0.00014136,2]
[331797411,1720765917798,-729.38,0.00014136,2]
[331797412,1720765917811,-500.0,0.00014136,2]
[331797413,1720765917821,-500.0,0.00014136,2]
[331797414,1720765917833,-500.0,0.00014136,2]
[331797415,1720765917845,-1661.47,0.00014136,2]
[331797416,1720765917856,-500.0,0.00014136,2]
[331797417,1720765917867,-1622.68,0.00014136,2]
[331797418,1720765917878,-1461.03,0.00014136,2]
[331797419,1720765917888,-932.1,0.00014136,2]
[331797420,1720765917898,-600.18,0.00014136,2]
[331797421,1720765917908,-500.0,0.00014136,2]
[331797422,1720765917918,-652.76,0.00014136,2]
[331797423,1720765917928,-590.79,0.00014136,2]
[331797424,1720765917938,-649.76,0.00014136,2]
[331797425,1720765917949,-562.94,0.00014136,2]
[331797426,1720765917959,-500.0,0.00014136,2]
[331797427,1720765917971,-500.0,0.00014136,2]
[331797428,1720765917981,-511.55,0.00014136,2]
[331797429,1720765917991,-682.84,0.00014136,2]
[331797430,1720765918002,-500.0,0.00014136,2]
[331797431,1720765918013,-557.92,0.00014136,2]
[331797432,1720765918024,-913.11,0.00014136,2]
[331797433,1720765918034,-500.0,0.00014136,2]
[331797434,1720765918044,-500.0,0.00014136,2]
[331797435,1720765918054,-665.1,0.00014136,2]
[331797436,1720765918065,-500.0,0.00014136,2]
[331797437,1720765918076,-647.57,0.00014136,2]
[331797438,1720765918087,-655.14,0.00014136,2]
[331797439,1720765918098,-1070.59,0.00014136,2]
[331797440,1720765918108,-500.0,0.00014136,2]
[331797441,1720765918118,-500.0,0.00014136,2]
[331797442,1720765918128,-500.0,0.00014136,2]
[331797443,1720765918139,-549.77,0.00014136,2]
[331797444,1720765918148,-955.34,0.00014136,2]
[331797445,1720765918158,-500.0,0.00014136,2]
[331797446,1720765918168,-500.0,0.00014136,2]
[331797447,1720765918178,-500.0,0.00014136,2]
[331797448,1720765918188,-572.55,0.00014136,2]
[331797449,1720765918200,-1087.88,0.00014136,2]
[331797450,1720765918210,-924.38,0.00014136,2]
[331797451,1720765918220,-500.0,0.00014136,2]
[331797452,1720765918230,-500.0,0.00014136,2]
[331797453,1720765918240,-895.76,0.00014136,2]
[331797454,1720765918250,-877.72,0.00014136,2]
[331797455,1720765918260,-701.46,0.00014136,2]
[331797456,1720765918270,-811.35,0.00014136,2]
[331797457,1720765918281,-500.0,0.00014136,2]
[331797458,1720765918291,-943.64,0.00014136,2]
[331797459,1720765918301,-500.0,0.00014136,2]
[331797460,1720765918311,-535.3,0.00014136,2]
[331797461,1720765918321,-581.74,0.00014136,2]
[331797462,1720765918331,-951.0,0.00014136,2]
[331797463,1720765918341,-533.99,0.00014136,2]
[331797464,1720765918351,-500.0,0.00014136,2]
[331797465,1720765918360,-691.79,0.00014136,2]
[331797466,1720765918370,-500.0,0.00014136,2]
[331797467,1720765918380,-749.0,0.00014136,2]
[331797468,1720765918389,-646.61,0.00014136,2]
[331797469,1720765918399,-1153.39,0.00014136,2]
[331797470,1720765918408,-828.98,0.00014136,2]
[331797471,1720765918418,-500.0,0.00014136,2]
[331797472,1720765918427,-500.0,0.00014136,2]
[331797473,1720765918437,-797.92,0.00014136,2]
[331797474,1720765918447,-678.2,0.00014136,2]
[331797475,1720765918458,-500.0,0.00014136,2]
[331797476,1720765918467,-742.09,0.00014136,2]
[331797477,1720765918477,-925.55,0.00014136,2]
[331797478,1720765918486,-718.26,0.00014136,2]
[331797479,1720765918496,-660.22,0.00014136,2]
[331797480,1720765918507,-500.0,0.00014136,2]
[331797481,1720765918519,-685.66,0.00014136,2]
[331797482,1720765918533,-616.92,0.00014136,2]
[331797483,1720765918543,-626.69,0.00014136,2]
[331797484,1720765918553,-578.66,0.00014136,2]
[331797485,1720765918563,-1182.27,0.00014136,2]
[331797486,1720765918573,-751.88,0.00014136,2]
[331797487,1720765918584,-500.0,0.00014136,2]
[331797488,1720765918596,-788.87,0.00014136,2]
[331797489,1720765918605,-589.96,0.00014136,2]
[331797490,1720765918615,-1518.85,0.00014136,2]
[331797491,1720765918625,-500.0,0.00014136,2]
[331797492,1720765918635,-863.12,0.00014136,2]
[331797493,1720765918645,-500.0,0.00014136,2]
[331797494,1720765918659,-765.3,0.00014136,2]
[331797495,1720765918671,-1173.86,0.00014136,2]
[331797496,1720765918682,-500.0,0.00014136,2]
[331797497,1720765918692,-714.93,0.00014136,2]
[331797498,1720765918704,-500.0,0.00014136,2]
[331797499,1720765918714,-500.0,0.00014136,2]
[331797500,1720765918725,-889.91,0.00014136,2]
[331797501,1720765918736,-500.0,0.00014136,2]
[331797502,1720765918747,-797.27,0.00014136,2]
[331797503,1720765918759,-500.0,0.00014136,2]
[331797504,1720765918771,-508.63,0.00014136,2]
[331797505,1720765918783,-500.0,0.00014136,2]
[331797506,1720765918794,-1002.89,0.00014136,2]
[331797507,1720765918806,-512.8,0.00014136,2]
[331797508,1720765918816,-905.0,0.00014136,2]
[331797509,1720765918828,-500.0,0.00014136,2]
[331797510,1720765918838,-500.0,0.00014136,2]
[331797511,1720765918848,-500.0,0.00014136,2]
[331797512,1720765918858,-500.0,0.00014136,2]
[331797513,1720765918869,-504.61,0.00014136,2]
[331797514,1720765918879,-500.0,0.00014136,2]
[331797515,1720765918890,-998.09,0.00014136,2]
[331797516,1720765918901,-1181.8,0.00014136,2]
[331797517,1720765918911,-500.0,0.00014136,2]
[331797518,1720765918921,-1692.88,0.00014136,2]
[331797519,1720765918932,-500.0,0.00014136,2]
[331797520,1720765918943,-500.0,0.00014136,2]
[331797521,1720765918956,-806.67,0.00014136,2]
[331797522,1720765918966,-1115.55,0.00014136,2]
[331797523,1720765918979,-1111.86,0.00014136,2]
[331797524,1720765918989,-500.0,0.00014136,2]
[331797525,1720765919000,-1152.37,0.00014136,2]
[331797526,1720765919010,-500.0,0.00014136,2]
[331797527,1720765919020,-500.0,0.00014136,2]
[331797528,1720765919029,-1099.21,0.00014136,2]
[331797529,1720765919041,-500.0,0.00014136,2]
[331797530,1720765919052,-500.0,0.00014136,2]
[331797531,1720765919064,-500.0,0.00014136,2]
[331797532,1720765919074,-500.0,0.00014136,2]
[331797533,1720765919084,-500.0,0.00014136,2]
[331797534,1720765919094,-958.58,0.00014136,2]
[331797535,1720765919104,-500.0,0.00014136,2]
[331797536,1720765919115,-1435.54,0.00014136,2]
[331797537,1720765919126,-500.0,0.00014136,2]
[331797538,1720765919136,-500.0,0.00014136,2]
[331797539,1720765919146,-933.39,0.00014136,2]
[331797540,1720765919156,-885.22,0.00014136,2]
[331797541,1720765919166,-500.0,0.00014136,2]
[331797542,1720765919176,-525.55,0.00014136,2]
[331797543,1720765919186,-578.47,0.00014136,2]
[331797544,1720765919197,-585.1,0.00014136,2]
[331797545,1720765919208,-768.43,0.00014136,2]
[331797546,1720765919218,-500.0,0.00014136,2]
[331797547,1720765919228,-1131.03,0.00014136,2]
[331797548,1720765919239,-500.66,0.00014136,2]
[331797549,1720765919249,-1387.16,0.00014136,2]
[331797550,1720765919259,-769.71,0.00014136,2]
[331797551,1720765919270,-592.67,0.00014136,2]
[331797552,1720765919280,-929.61,0.00014136,2]
[331797553,1720765919290,-500.0,0.00014136,2]
[331797554,1720765919300,-1195.55,0.00014136,2]
[331797555,1720765919310,-1164.92,0.00014136,2]
[331797556,1720765919319,-832.05,0.00014136,2]
[331797557,1720765919330,-1157.39,0.00014136,2]
[331797558,1720765919340,-965.25,0.00014136,2]
[331797559,1720765919350,-1057.96,0.00014136,2]
[331797560,1720765919360,-500.0,0.00014136,2]
[331797561,1720765919370,-479.60339131,0.00014136,2]
[331797562,1720765919380,-500.0,0.00014136,2]
[331797563,1720765919390,-663.73,0.00014136,2]
[331797564,1720765919400,-996.83,0.00014136,2]
[331797565,1720765919410,-778.42,0.00014136,2]
[331797566,1720765919420,-500.94,0.00014136,2]
[331797567,1720765919430,-500.0,0.00014136,2]
[331797568,1720765919441,-500.0,0.00014136,2]
[331797569,1720765919451,-1011.24,0.00014136,2]
[331797570,1720765919461,-500.0,0.00014136,2]
[331797571,1720765919472,-724.27,0.00014136,2]
[331797572,1720765919482,-500.0,0.00014136,2]
[331797573,1720765919491,-500.0,0.00014136,2]
[331797574,1720765919502,-948.7,0.00014136,2]
[331797575,1720765919516,-500.0,0.00014136,2]
[331797576,1720765919526,-1338.17,0.00014136,2]
[331797577,1720765919535,-894.67,0.00014136,2]
[331797578,1720765919545,-500.0,0.00014136,2]
[331797579,1720765919557,-691.16,0.00014136,2]
[331797580,1720765919567,-706.91,0.00014136,2]
[331797581,1720765919577,-500.0,0.00014136,2]
[331797582,1720765919588,-500.0,0.00014136,2]
[331797583,1720765919598,-1648.59,0.00014136,2]
[331797584,1720765919608,-579.34,0.00014136,2]
[331797585,1720765919618,-534.75,0.00014136,2]
[331797586,1720765919628,-6673.84,0.00014136,2]
[331797587,1720765919638,-500.0,0.00014136,2]
[331797588,1720765919648,-791.66,0.00014136,2]
[331797589,1720765919658,-868.6,0.00014136,2]
[331797590,1720765919668,-503.87,0.00014136,2]
[331797591,1720765919679,-500.0,0.00014136,2]
[331797592,1720765919689,-500.0,0.00014136,2]
[331797593,1720765919700,-500.0,0.00014136,2]
[331797594,1720765919710,-1463.05,0.00014136,2]
[331797595,1720765919720,-500.0,0.00014136,2]
[331797596,1720765919731,-1711.11,0.00014136,2]
[331797597,1720765919976,-500.0,0.00014136,2]
[331797598,1720765919988,-940.12,0.00014136,2]
[331797599,1720765919998,-500.0,0.00014136,2]
[331797600,1720765920008,-500.0,0.00014136,2]
[331797601,1720765920018,-500.0,0.00014136,2]
[331797602,1720765920029,-1103.87,0.00014136,2]
[331797603,1720765920038,-838.82,0.00014136,2]
[331797604,1720765920050,-500.0,0.00014136,2]
[331797605,1720765920061,-906.68,0.00014136,2]
[331797606,1720765920071,-774.99,0.00014136,2]
[331797607,1720765920081,-500.0,0.00014136,2]
[331797608,1720765920091,-1574.49,0.00014136,2]
[331797609,1720765920101,-1003.46,0.00014136,2]
[331797610,1720765920111,-776.49,0.00014136,2]
[331797611,1720765920121,-715.19,0.00014136,2]
[331797612,1720765920131,-2671.99,0.00014136,2]
[331797613,1720765920140,-500.0,0.00014136,2]
[331797614,1720765920151,-811.17,0.00014136,2]
[331797615,1720765920162,-1169.16,0.00014136,2]
[331797616,1720765920172,-516.06,0.00014136,2]
[331797617,1720765920182,-804.64,0.00014136,2]
[331797618,1720765920191,-500.0,0.00014136,2]
[331797619,1720765920201,-1567.42,0.00014136,2]
[331797620,1720765920211,-1123.97,0.00014136,2]
[331797621,1720765920221,-1159.17,0.00014136,2]
[331797622,1720765920231,-7796.51,0.00014136,2]
[331797623,1720765920241,-682.47,0.00014136,2]
[331797624,1720765920251,-3427.86,0.00014136,2]
[331797625,1720765920261,-884.1,0.00014136,2]
[331797626,1720765920271,-761.42,0.00014136,2]
[331797627,1720765920280,-500.0,0.00014136,2]
[331797628,1720765920291,-500.0,0.00014136,2]
[331797629,1720765920301,-500.0,0.00014136,2]
[331797630,1720765920311,-2349.61,0.00014136,2]
[331797631,1720765920321,-2824.19,0.00014136,2]
[331797632,1720765920332,-544.06,0.00014136,2]
[331797633,1720765920345,-1413.14,0.00014136,2]